[Event "*** Titled Tuesday 3|2 Blitz (Early)"]
[Site "Chess.com"]
[Date "2016.11.01"]
[Round "9"]
[White "Morshynska"]
[Black "chito89"]
[Result "0-1"]
[WhiteElo "2147"]
[BlackElo "2484"]
[TimeControl "180+2"]
[EndTime "13:02:10 PDT"]
[Termination "chito89 won by checkmate"]

1. Nf3 {[%clk 0:03:01.9]} 1... d5 {[%clk 0:02:49.9]} 2. g3 {[%clk 0:03:02.2]}
2... Bg4 {[%clk 0:02:51.4]} 3. Bg2 {[%clk 0:03:03]} 3... c6 {[%clk 0:02:51.3]}
4. h3 {[%clk 0:03:03.8]} 4... Bh5 {[%clk 0:02:50.8]} 5. d3 {[%clk 0:03:02.5]}
5... Nd7 {[%clk 0:02:51.5]} 6. O-O {[%clk 0:03:01.3]} 6... Ngf6 {[%clk 0:02:53]}
7. b3 {[%clk 0:02:56.4]} 7... e5 {[%clk 0:02:53.5]} 8. Bb2 {[%clk 0:02:56.9]}
8... Bd6 {[%clk 0:02:54.5]} 9. Nc3 {[%clk 0:02:48.2]} 9... O-O {[%clk
0:02:50.8]} 10. e4 {[%clk 0:02:43.4]} 10... d4 {[%clk 0:02:38.4]} 11. Ne2 {[%clk
0:02:42.3]} 11... Bxf3 {[%clk 0:02:38.4]} 12. Bxf3 {[%clk 0:02:44.2]} 12... c5
{[%clk 0:02:39.9]} 13. Bg2 {[%clk 0:02:44]} 13... b5 {[%clk 0:02:40.1]} 14. a4
{[%clk 0:02:44.2]} 14... a6 {[%clk 0:02:40.3]} 15. f4 {[%clk 0:02:44.8]} 15...
Qb6 {[%clk 0:02:36.9]} 16. Kh2 {[%clk 0:02:43.3]} 16... Rac8 {[%clk 0:02:33.5]}
17. f5 {[%clk 0:02:43.5]} 17... c4 {[%clk 0:02:29.1]} 18. axb5 {[%clk
0:02:35.8]} 18... axb5 {[%clk 0:02:29.1]} 19. g4 {[%clk 0:02:23.2]} 19... cxb3
{[%clk 0:02:29.4]} 20. cxb3 {[%clk 0:02:25.1]} 20... h6 {[%clk 0:02:30.5]} 21.
Ng3 {[%clk 0:02:23.3]} 21... Rc7 {[%clk 0:02:25.7]} 22. h4 {[%clk 0:02:23]}
22... Rfc8 {[%clk 0:02:25.6]} 23. g5 {[%clk 0:02:22]} 23... Rc2 {[%clk
0:02:25.2]} 24. gxf6 {[%clk 0:02:00]} 24... Rxb2 {[%clk 0:02:21]} 25. fxg7
{[%clk 0:02:00.7]} 25... Rcc2 {[%clk 0:02:04.3]} 26. Rg1 {[%clk 0:02:01]} 26...
Bb8 {[%clk 0:01:55.1]} 27. Nh5 {[%clk 0:01:54.7]} 27... Qd8 {[%clk 0:01:54.7]}
28. Qg4 {[%clk 0:01:51.2]} 28... Rxb3 {[%clk 0:01:44.4]} 29. Ra8 {[%clk
0:01:34.7]} 29... Rxd3 {[%clk 0:01:37]} 30. f6 {[%clk 0:01:27.8]} 30... Rdd2
{[%clk 0:01:32.2]} 31. Kh1 {[%clk 0:00:54.3]} 31... b4 {[%clk 0:01:29]} 32. Ng3
{[%clk 0:00:35.4]} 32... Nxf6 {[%clk 0:01:27.3]} 33. Qf3 {[%clk 0:00:19.8]}
33... Rc3 {[%clk 0:01:21.6]} 34. Rxb8 {[%clk 0:00:15.1]} 34... Qxb8 {[%clk
0:01:22.3]} 35. Qxf6 {[%clk 0:00:15.2]} 35... Rxg3 {[%clk 0:01:20.2]} 36. Qxh6
{[%clk 0:00:13]} 36... Rxg7 {[%clk 0:01:21.2]} 37. Bh3 {[%clk 0:00:12.3]} 37...
Rxg1+ {[%clk 0:01:19.1]} 38. Kxg1 {[%clk 0:00:14.2]} 38... Rd1+ {[%clk
0:01:19.9]} 39. Kh2 {[%clk 0:00:14.3]} 39... Qc7 {[%clk 0:01:12.7]} 40. Qg5+
{[%clk 0:00:05.7]} 40... Kf8 {[%clk 0:01:14.1]} 41. Qh6+ {[%clk 0:00:06.6]}
41... Ke8 {[%clk 0:01:15.6]} 42. Qh8+ {[%clk 0:00:06.9]} 42... Ke7 {[%clk
0:01:16.8]} 43. Bf5 {[%clk 0:00:07.4]} 43... Qc2+ {[%clk 0:01:17.2]} 44. Kh3
{[%clk 0:00:09.3]} 44... Rd3+ {[%clk 0:01:00.3]} 45. Kg4 {[%clk 0:00:11.2]}
45... Qe2+ {[%clk 0:01:01.2]} 46. Kg5 {[%clk 0:00:11.3]} 46... Qe3+ {[%clk
0:00:55.9]} 47. Kh5 {[%clk 0:00:10.9]} 47... Qf3+ {[%clk 0:00:57.1]} 48. Kh6
{[%clk 0:00:10.1]} 48... Qf4+ {[%clk 0:00:58.5]} 49. Kh5 {[%clk 0:00:10.9]}
49... Rc3 {[%clk 0:00:36]} 50. Qb8 {[%clk 0:00:10]} 50... Rc6 {[%clk 0:00:28.5]}
51. Qxb4+ {[%clk 0:00:07]} 51... Kf6 {[%clk 0:00:29.2]} 52. Qb5 {[%clk
0:00:04.9]} 52... Qf3+ {[%clk 0:00:18]} 53. Kh6 {[%clk 0:00:05.8]} 53... Qe3+
{[%clk 0:00:19.1]} 54. Kh5 {[%clk 0:00:05.9]} 54... Qf3+ {[%clk 0:00:17.5]} 55.
Kh6 {[%clk 0:00:07.3]} 55... Qe3+ {[%clk 0:00:17.1]} 56. Kh5 {[%clk 0:00:08.7]}
56... Qc3 {[%clk 0:00:18.7]} 57. Qb8 {[%clk 0:00:09]} 57... Kg7 {[%clk
0:00:18.6]} 58. Qd8 {[%clk 0:00:09.3]} 58... Qf3+ {[%clk 0:00:16.2]} 59. Kg5
{[%clk 0:00:10]} 59... Qf4+ {[%clk 0:00:17]} 60. Kh5 {[%clk 0:00:10.9]} 60...
Rh6# {[%clk 0:00:17.8]} 0-1

[Event "*** Titled Tuesday 3|2 Blitz (Early)"]
[Site "Chess.com"]
[Date "2016.11.01"]
[Round "9"]
[White "amaidel"]
[Black "NTBT_DHS"]
[Result "1/2-1/2"]
[WhiteElo "2493"]
[BlackElo "2496"]
[TimeControl "180+2"]
[EndTime "13:03:29 PDT"]
[Termination "Game drawn by repetition"]

1. e4 {[%clk 0:03:02]} 1... g6 {[%clk 0:02:59.9]} 2. d4 {[%clk 0:03:02.3]} 2...
Bg7 {[%clk 0:03:00.8]} 3. Nc3 {[%clk 0:03:03.1]} 3... a6 {[%clk 0:03:01.9]} 4.
Nf3 {[%clk 0:03:02.1]} 4... d6 {[%clk 0:02:59.8]} 5. Be2 {[%clk 0:03:02.5]} 5...
b5 {[%clk 0:03:00.8]} 6. a3 {[%clk 0:03:02.1]} 6... Nd7 {[%clk 0:03:01.9]} 7.
O-O {[%clk 0:03:02.7]} 7... Bb7 {[%clk 0:03:02.6]} 8. Bf4 {[%clk 0:02:59.4]}
8... Ngf6 {[%clk 0:02:51.1]} 9. Qd3 {[%clk 0:02:59.6]} 9... O-O {[%clk
0:02:43.3]} 10. h3 {[%clk 0:02:58.3]} 10... Re8 {[%clk 0:02:23.4]} 11. Rfe1
{[%clk 0:02:58.1]} 11... e5 {[%clk 0:02:16]} 12. dxe5 {[%clk 0:02:50]} 12...
dxe5 {[%clk 0:02:16.4]} 13. Be3 {[%clk 0:02:50]} 13... c5 {[%clk 0:02:15.4]} 14.
Rad1 {[%clk 0:02:33.6]} 14... c4 {[%clk 0:02:13.4]} 15. Qd2 {[%clk 0:02:34.5]}
15... Qc7 {[%clk 0:02:08]} 16. Bh6 {[%clk 0:02:31.1]} 16... Bh8 {[%clk
0:02:02.4]} 17. Ng5 {[%clk 0:02:28.9]} 17... Nc5 {[%clk 0:01:56.8]} 18. Qe3
{[%clk 0:02:24.4]} 18... Ne6 {[%clk 0:01:47.3]} 19. Nxe6 {[%clk 0:02:20.4]}
19... Rxe6 {[%clk 0:01:48.4]} 20. Bg4 {[%clk 0:02:16.1]} 20... Nxg4 {[%clk
0:01:47.6]} 21. hxg4 {[%clk 0:02:17.4]} 21... f6 {[%clk 0:01:41.7]} 22. g5
{[%clk 0:02:10.9]} 22... f5 {[%clk 0:01:35.7]} 23. Nd5 {[%clk 0:02:03.3]} 23...
Qf7 {[%clk 0:01:29.3]} 24. exf5 {[%clk 0:01:43.6]} 24... gxf5 {[%clk 0:01:25.8]}
25. c3 {[%clk 0:01:42.9]} 25... Bxd5 {[%clk 0:01:25.7]} 26. Rxd5 {[%clk
0:01:42.3]} 26... Rxh6 {[%clk 0:01:20.5]} 27. gxh6 {[%clk 0:01:43.1]} 27... Qxd5
{[%clk 0:01:21.6]} 28. Qg5+ {[%clk 0:01:43.3]} 28... Kf8 {[%clk 0:01:23.3]} 29.
Qxf5+ {[%clk 0:01:42.6]} 29... Qf7 {[%clk 0:01:24.9]} 30. Qe4 {[%clk 0:01:42.8]}
30... Re8 {[%clk 0:01:22.1]} 31. Re3 {[%clk 0:01:43.2]} 31... Bf6 {[%clk
0:01:13.6]} 32. Rf3 {[%clk 0:01:42.9]} 32... Kg8 {[%clk 0:01:12.9]} 33. Qc6
{[%clk 0:01:29.1]} 33... Rf8 {[%clk 0:00:56.7]} 34. Qxa6 {[%clk 0:01:29.4]}
34... e4 {[%clk 0:00:39.4]} 35. Rf5 {[%clk 0:01:23.3]} 35... Qg6 {[%clk
0:00:33.2]} 36. Qxb5 {[%clk 0:01:22.6]} 36... Kh8 {[%clk 0:00:30.2]} 37. Qd5
{[%clk 0:01:17.2]} 37... Qxh6 {[%clk 0:00:19]} 38. Qxe4 {[%clk 0:01:18.1]} 38...
Rd8 {[%clk 0:00:20]} 39. Qc2 {[%clk 0:01:14.3]} 39... Rd3 {[%clk 0:00:20.2]} 40.
a4 {[%clk 0:01:13.7]} 40... Qg6 {[%clk 0:00:20.3]} 41. Rc5 {[%clk 0:01:12.5]}
41... Qg4 {[%clk 0:00:20.8]} 42. f3 {[%clk 0:00:53.5]} 42... Qf4 {[%clk
0:00:16.1]} 43. Qe2 {[%clk 0:00:49.4]} 43... Re3 {[%clk 0:00:13.6]} 44. Qd2
{[%clk 0:00:47.3]} 44... Kg7 {[%clk 0:00:10]} 45. Rxc4 {[%clk 0:00:41.6]} 45...
Qxc4 {[%clk 0:00:10.8]} 46. Qxe3 {[%clk 0:00:42.5]} 46... Qxa4 {[%clk
0:00:12.5]} 47. Qd2 {[%clk 0:00:41.1]} 47... Qb5 {[%clk 0:00:13.1]} 48. Qf2
{[%clk 0:00:35.6]} 48... h5 {[%clk 0:00:13.7]} 49. g4 {[%clk 0:00:35.4]} 49...
h4 {[%clk 0:00:14.6]} 50. f4 {[%clk 0:00:36.5]} 50... Qd3 {[%clk 0:00:14.1]} 51.
g5 {[%clk 0:00:36.1]} 51... Qd1+ {[%clk 0:00:15.1]} 52. Kh2 {[%clk 0:00:36.3]}
52... Be7 {[%clk 0:00:15.7]} 53. Qxh4 {[%clk 0:00:37.2]} 53... Qf3 {[%clk
0:00:17.1]} 54. Qh6+ {[%clk 0:00:37.5]} 54... Kf7 {[%clk 0:00:17.1]} 55. g6+
{[%clk 0:00:38.2]} 55... Ke8 {[%clk 0:00:18.1]} 56. Qh8+ {[%clk 0:00:38]} 56...
Kd7 {[%clk 0:00:18.1]} 57. Qd4+ {[%clk 0:00:38.3]} 57... Bd6 {[%clk 0:00:19.6]}
58. g7 {[%clk 0:00:36.3]} 58... Qg4 {[%clk 0:00:20.6]} 59. b4 {[%clk 0:00:30.8]}
59... Kc7 {[%clk 0:00:21.3]} 60. Qc4+ {[%clk 0:00:31.3]} 60... Kb6 {[%clk
0:00:22.4]} 61. g8=Q {[%clk 0:00:31.7]} 61... Bxf4+ {[%clk 0:00:23.6]} 62. Qxf4
{[%clk 0:00:24.1]} 62... Qxf4+ {[%clk 0:00:24.8]} 63. Qg3 {[%clk 0:00:24.6]}
63... Qd2+ {[%clk 0:00:26.4]} 64. Kg1 {[%clk 0:00:25.3]} 64... Qd1+ {[%clk
0:00:26.3]} 65. Kg2 {[%clk 0:00:26.3]} 65... Qd5+ {[%clk 0:00:27.3]} 66. Qf3
{[%clk 0:00:26.7]} 66... Qg5+ {[%clk 0:00:29]} 67. Kf1 {[%clk 0:00:27.8]} 67...
Qc1+ {[%clk 0:00:30.1]} 68. Ke2 {[%clk 0:00:28.6]} 68... Qc2+ {[%clk 0:00:31.1]}
69. Ke1 {[%clk 0:00:28.5]} 69... Qc1+ {[%clk 0:00:31.8]} 70. Kf2 {[%clk
0:00:29.6]} 70... Qd2+ {[%clk 0:00:32]} 71. Kg3 {[%clk 0:00:30.6]} 71... Qg5+
{[%clk 0:00:33.7]} 72. Kh2 {[%clk 0:00:29.5]} 72... Qd2+ {[%clk 0:00:33.2]} 73.
Kh3 {[%clk 0:00:29.1]} 73... Qh6+ {[%clk 0:00:33.7]} 74. Kg4 {[%clk 0:00:30.1]}
74... Qg6+ {[%clk 0:00:34.7]} 75. Kf4 {[%clk 0:00:31.2]} 75... Qf6+ {[%clk
0:00:35.6]} 76. Ke4 {[%clk 0:00:31.9]} 76... Qc6+ {[%clk 0:00:34.6]} 77. Kf4
{[%clk 0:00:33]} 77... Qf6+ {[%clk 0:00:35.6]} 78. Kg3 {[%clk 0:00:33.7]} 78...
Qg5+ {[%clk 0:00:36.8]} 79. Kf2 {[%clk 0:00:32.9]} 79... Qd2+ {[%clk 0:00:37.9]}
80. Kf1 {[%clk 0:00:33.8]} 80... Qc1+ {[%clk 0:00:37.7]} 81. Kg2 {[%clk
0:00:32]} 81... Qg5+ {[%clk 0:00:37.2]} 82. Qg3 {[%clk 0:00:32.4]} 82... Qd5+
{[%clk 0:00:37.5]} 83. Kh2 {[%clk 0:00:30.7]} 83... Qh5+ {[%clk 0:00:36.8]} 84.
Kg1 {[%clk 0:00:31.4]} 84... Qd1+ {[%clk 0:00:37.5]} 85. Kg2 {[%clk 0:00:31.7]}
85... Qd5+ {[%clk 0:00:39.1]} 86. Qf3 {[%clk 0:00:31.2]} 86... Qg5+ {[%clk
0:00:39.8]} 87. Kf2 {[%clk 0:00:31]} 87... Qd2+ {[%clk 0:00:40.6]} 88. Kf1
{[%clk 0:00:21]} 88... Qc1+ {[%clk 0:00:41]} 89. Kg2 {[%clk 0:00:21.6]} 89...
Qg5+ {[%clk 0:00:42.1]} 1/2-1/2

[Event "*** Titled Tuesday 3|2 Blitz (Early)"]
[Site "Chess.com"]
[Date "2016.11.01"]
[Round "9"]
[White "petrpalachev"]
[Black "Ginger_GM"]
[Result "0-1"]
[WhiteElo "2431"]
[BlackElo "2443"]
[TimeControl "180+2"]
[EndTime "13:03:29 PDT"]
[Termination "Ginger_GM won by checkmate"]

1. d4 {[%clk 0:03:02]} 1... e6 {[%clk 0:02:58.7]} 2. Nf3 {[%clk 0:03:02.7]} 2...
f5 {[%clk 0:02:59.2]} 3. g3 {[%clk 0:03:03.2]} 3... Nf6 {[%clk 0:02:59]} 4. Bg2
{[%clk 0:03:05.1]} 4... Be7 {[%clk 0:02:59.7]} 5. O-O {[%clk 0:03:06.8]} 5...
O-O {[%clk 0:03:00.1]} 6. c4 {[%clk 0:03:01.4]} 6... d6 {[%clk 0:02:59.3]} 7.
Nc3 {[%clk 0:03:01.1]} 7... a5 {[%clk 0:02:59.6]} 8. Rb1 {[%clk 0:02:58.2]} 8...
Ne4 {[%clk 0:02:59.1]} 9. Qc2 {[%clk 0:02:57]} 9... Nxc3 {[%clk 0:02:59.9]} 10.
Qxc3 {[%clk 0:02:58.9]} 10... Bf6 {[%clk 0:03:00.4]} 11. Rd1 {[%clk 0:02:58.5]}
11... Qe7 {[%clk 0:02:57.4]} 12. b3 {[%clk 0:02:56.9]} 12... e5 {[%clk
0:02:58.1]} 13. e3 {[%clk 0:02:48.1]} 13... g5 {[%clk 0:02:50.8]} 14. Bb2 {[%clk
0:02:48.1]} 14... Nc6 {[%clk 0:02:44]} 15. a3 {[%clk 0:02:48.2]} 15... g4 {[%clk
0:02:44.3]} 16. dxe5 {[%clk 0:02:40.7]} 16... dxe5 {[%clk 0:02:42.5]} 17. Ne1
{[%clk 0:02:35.6]} 17... e4 {[%clk 0:02:41.2]} 18. Qc1 {[%clk 0:02:30]} 18...
Bxb2 {[%clk 0:02:41.4]} 19. Rxb2 {[%clk 0:02:29.5]} 19... Ne5 {[%clk 0:02:42.5]}
20. Qc3 {[%clk 0:02:22]} 20... Qf6 {[%clk 0:02:33.8]} 21. Rc2 {[%clk 0:02:18.3]}
21... Be6 {[%clk 0:02:32.3]} 22. h4 {[%clk 0:02:02.8]} 22... a4 {[%clk
0:02:21.4]} 23. Bf1 {[%clk 0:01:56]} 23... axb3 {[%clk 0:02:20.5]} 24. Qxb3
{[%clk 0:01:57.9]} 24... b6 {[%clk 0:02:19.8]} 25. Be2 {[%clk 0:01:53.1]} 25...
Nf3+ {[%clk 0:02:10.7]} 26. Bxf3 {[%clk 0:01:53.2]} 26... gxf3 {[%clk
0:02:11.2]} 27. Qc3 {[%clk 0:01:50.3]} 27... Qxc3 {[%clk 0:01:58.9]} 28. Rxc3
{[%clk 0:01:52.2]} 28... Ra5 {[%clk 0:01:59.6]} 29. Nc2 {[%clk 0:01:49.1]} 29...
Rc5 {[%clk 0:01:51.7]} 30. Nd4 {[%clk 0:01:32.9]} 30... Kf7 {[%clk 0:01:47]} 31.
Nxe6 {[%clk 0:01:17.6]} 31... Kxe6 {[%clk 0:01:46.1]} 32. Rd5 {[%clk 0:00:56.2]}
32... Rc6 {[%clk 0:01:00.8]} 33. Kf1 {[%clk 0:00:45.8]} 33... Ra8 {[%clk
0:00:59.1]} 34. Rb5 {[%clk 0:00:35.1]} 34... Ra4 {[%clk 0:00:53.9]} 35. Rb4
{[%clk 0:00:20.8]} 35... Rd6 {[%clk 0:00:53.7]} 36. Ke1 {[%clk 0:00:19.8]} 36...
Ra5 {[%clk 0:00:48.5]} 37. Rb5 {[%clk 0:00:18.5]} 37... Ra8 {[%clk 0:00:30.8]}
38. c5 {[%clk 0:00:17.8]} 38... bxc5 {[%clk 0:00:31.3]} 39. Rbxc5 {[%clk
0:00:18.3]} 39... Rad8 {[%clk 0:00:27.7]} 40. Rc1 {[%clk 0:00:18.1]} 40... Rd2
{[%clk 0:00:17.1]} 41. Rc6+ {[%clk 0:00:16.3]} 41... Ke5 {[%clk 0:00:15.1]} 42.
R6c5+ {[%clk 0:00:14.6]} 42... Ke6 {[%clk 0:00:14]} 43. Rc6+ {[%clk 0:00:15.9]}
43... Ke5 {[%clk 0:00:15.1]} 44. R6c5+ {[%clk 0:00:17.1]} 44... R8d5 {[%clk
0:00:15.4]} 45. Rxd5+ {[%clk 0:00:15.9]} 45... Rxd5 {[%clk 0:00:16.4]} 46. Rxc7
{[%clk 0:00:17.5]} 46... Rd3 {[%clk 0:00:17.4]} 47. Rc5+ {[%clk 0:00:16.5]}
47... Ke6 {[%clk 0:00:18]} 48. Rc1 {[%clk 0:00:16.4]} 48... Rxa3 {[%clk
0:00:18.6]} 49. Rd1 {[%clk 0:00:17.6]} 49... Ra2 {[%clk 0:00:19.8]} 50. Kf1
{[%clk 0:00:13.8]} 50... Kf6 {[%clk 0:00:20.7]} 51. Rd6+ {[%clk 0:00:12.6]}
51... Ke5 {[%clk 0:00:21.6]} 52. Rd1 {[%clk 0:00:12.8]} 52... Ke6 {[%clk
0:00:21.6]} 53. Ke1 {[%clk 0:00:13.1]} 53... Kf6 {[%clk 0:00:20.7]} 54. Rd6+
{[%clk 0:00:09]} 54... Ke5 {[%clk 0:00:21.3]} 55. Rd1 {[%clk 0:00:09.8]} 55...
Re2+ {[%clk 0:00:21.2]} 56. Kf1 {[%clk 0:00:10.1]} 56... Ke6 {[%clk 0:00:22.9]}
57. Kg1 {[%clk 0:00:09.5]} 57... Rc2 {[%clk 0:00:22.8]} 58. Kf1 {[%clk
0:00:10.7]} 58... Rc5 {[%clk 0:00:23.9]} 59. Ke1 {[%clk 0:00:11.8]} 59... Rc2
{[%clk 0:00:24.8]} 60. Kf1 {[%clk 0:00:11.7]} 60... Kf7 {[%clk 0:00:24.6]} 61.
Ke1 {[%clk 0:00:11.7]} 61... Kg6 {[%clk 0:00:25.4]} 62. Kf1 {[%clk 0:00:12.5]}
62... Kh5 {[%clk 0:00:25.9]} 63. Kg1 {[%clk 0:00:13.2]} 63... Kg4 {[%clk
0:00:26.7]} 64. Re1 {[%clk 0:00:10.4]} 64... Re2 {[%clk 0:00:24.8]} 65. Ra1
{[%clk 0:00:10.3]} 65... Kh3 {[%clk 0:00:25.2]} 66. Rf1 {[%clk 0:00:05.6]} 66...
h5 {[%clk 0:00:23.5]} 67. Rd1 {[%clk 0:00:06]} 67... f4 {[%clk 0:00:23]} 68.
gxf4 {[%clk 0:00:06.7]} 68... Kxh4 {[%clk 0:00:24.1]} 69. Rf1 {[%clk 0:00:04.9]}
69... Kg4 {[%clk 0:00:25.2]} 70. Kh2 {[%clk 0:00:05.4]} 70... Kh4 {[%clk
0:00:25]} 71. Kg1 {[%clk 0:00:05.6]} 71... Rd2 {[%clk 0:00:26.1]} 72. Rb1 {[%clk
0:00:04.3]} 72... Kh3 {[%clk 0:00:27]} 73. Rc1 {[%clk 0:00:03.5]} 73... h4
{[%clk 0:00:27.3]} 74. Rb1 {[%clk 0:00:03.4]} 74... Rd7 {[%clk 0:00:26.7]} 75.
Kh1 {[%clk 0:00:03.2]} 75... Rg7 {[%clk 0:00:26.3]} 76. Rf1 {[%clk 0:00:03.7]}
76... Rg2 {[%clk 0:00:26.3]} 77. Rg1 {[%clk 0:00:02.4]} 77... Rxf2 {[%clk
0:00:26.2]} 78. Re1 {[%clk 0:00:02.9]} 78... Rg2 {[%clk 0:00:27]} 79. Rf1 {[%clk
0:00:02.6]} 79... Kg4 {[%clk 0:00:25]} 80. Rg1 {[%clk 0:00:03]} 80... h3 {[%clk
0:00:25.1]} 81. Rf1 {[%clk 0:00:02.2]} 81... f2 {[%clk 0:00:23.3]} 82. Rd1
{[%clk 0:00:02.8]} 82... Kg3 {[%clk 0:00:24.5]} 83. f5 {[%clk 0:00:03.7]} 83...
Rh2# {[%clk 0:00:25.3]} 0-1

[Event "*** Titled Tuesday 3|2 Blitz (Early)"]
[Site "Chess.com"]
[Date "2016.11.01"]
[Round "9"]
[White "fastestmindalive"]
[Black "LawrenceTrent"]
[Result "1-0"]
[WhiteElo "2527"]
[BlackElo "2503"]
[TimeControl "180+2"]
[EndTime "13:04:04 PDT"]
[Termination "fastestmindalive won by resignation"]

1. e4 {[%clk 0:02:52.6]} 1... c6 {[%clk 0:03:00.7]} 2. Nc3 {[%clk 0:02:53.2]}
2... d5 {[%clk 0:03:01.6]} 3. Nf3 {[%clk 0:02:53.9]} 3... Bg4 {[%clk 0:03:01.9]}
4. h3 {[%clk 0:02:54.8]} 4... Bxf3 {[%clk 0:03:01.7]} 5. Qxf3 {[%clk 0:02:56.7]}
5... e6 {[%clk 0:03:03.6]} 6. d3 {[%clk 0:02:54.7]} 6... Nd7 {[%clk 0:03:03.8]}
7. Be2 {[%clk 0:02:55.1]} 7... Ngf6 {[%clk 0:02:56.8]} 8. O-O {[%clk 0:02:55.6]}
8... Bd6 {[%clk 0:02:55.5]} 9. Qe3 {[%clk 0:02:52.3]} 9... O-O {[%clk 0:02:54]}
10. d4 {[%clk 0:02:52.1]} 10... dxe4 {[%clk 0:02:37.4]} 11. Nxe4 {[%clk
0:02:54]} 11... Nxe4 {[%clk 0:02:38.2]} 12. Qxe4 {[%clk 0:02:55.9]} 12... Nf6
{[%clk 0:02:39.2]} 13. Qd3 {[%clk 0:02:49.9]} 13... e5 {[%clk 0:02:29]} 14. dxe5
{[%clk 0:02:44.8]} 14... Bxe5 {[%clk 0:02:29.1]} 15. Qb3 {[%clk 0:02:45.1]}
15... Qb6 {[%clk 0:02:28.8]} 16. Be3 {[%clk 0:02:42.5]} 16... Qxb3 {[%clk
0:02:26.9]} 17. axb3 {[%clk 0:02:44.4]} 17... a6 {[%clk 0:02:23.9]} 18. c3
{[%clk 0:02:43.6]} 18... Nd5 {[%clk 0:02:22.8]} 19. Bc5 {[%clk 0:02:44.6]} 19...
Rfe8 {[%clk 0:02:23.1]} 20. Bf3 {[%clk 0:02:46.2]} 20... Nf4 {[%clk 0:02:21]}
21. Rfd1 {[%clk 0:02:45.8]} 21... Rad8 {[%clk 0:02:21.3]} 22. Bb6 {[%clk
0:02:46.3]} 22... Rd3 {[%clk 0:02:16.3]} 23. Kf1 {[%clk 0:02:31.8]} 23... g6
{[%clk 0:02:06]} 24. b4 {[%clk 0:02:32.1]} 24... Re7 {[%clk 0:01:59.3]} 25. Rxd3
{[%clk 0:02:06.6]} 25... Nxd3 {[%clk 0:01:58.8]} 26. Rd1 {[%clk 0:01:56]} 26...
Nxb2 {[%clk 0:01:57.4]} 27. Rd8+ {[%clk 0:01:57.9]} 27... Kg7 {[%clk 0:01:58.4]}
28. Bc5 {[%clk 0:01:59.1]} 28... Re6 {[%clk 0:01:57.6]} 29. Bf8+ {[%clk
0:01:59.9]} 29... Kf6 {[%clk 0:01:58.2]} 30. Bg4 {[%clk 0:02:00.6]} 30... Bxc3
{[%clk 0:01:54.7]} 31. Bxe6 {[%clk 0:02:00.3]} 31... Kxe6 {[%clk 0:01:55.9]} 32.
Rd6+ {[%clk 0:01:57.7]} 32... Kf5 {[%clk 0:01:38.3]} 33. Rd7 {[%clk 0:01:57.7]}
33... b5 {[%clk 0:01:31.9]} 34. Rxf7+ {[%clk 0:01:50.2]} 34... Ke6 {[%clk
0:01:32.7]} 35. Ra7 {[%clk 0:01:49.8]} 35... Nd3 {[%clk 0:01:32.3]} 36. Rxa6
{[%clk 0:01:50.8]} 36... Kd5 {[%clk 0:01:33.3]} 37. Ra3 {[%clk 0:01:31.6]} 37...
Kc4 {[%clk 0:01:32.7]} 38. Ra6 {[%clk 0:01:31.3]} 38... Kd5 {[%clk 0:01:26.2]}
39. Ke2 {[%clk 0:01:28.3]} 39... Bxb4 {[%clk 0:01:21.9]} 40. Bh6 {[%clk
0:01:20]} 40... Ne5 {[%clk 0:01:07.1]} 41. Ra7 {[%clk 0:01:20.1]} 41... c5
{[%clk 0:01:07.6]} 42. Rxh7 {[%clk 0:01:19.7]} 42... c4 {[%clk 0:01:08.6]} 43.
Bf4 {[%clk 0:01:09.9]} 43... Nd3 {[%clk 0:01:09.5]} 44. Be3 {[%clk 0:01:09.7]}
44... Ne5 {[%clk 0:00:54]} 45. h4 {[%clk 0:01:09.7]} 45... Bc3 {[%clk 0:00:50]}
46. h5 {[%clk 0:01:09.6]} 46... b4 {[%clk 0:00:43.1]} 47. h6 {[%clk 0:01:06.4]}
47... b3 {[%clk 0:00:44.2]} 48. Rb7 {[%clk 0:01:06.7]} 48... Kc6 {[%clk
0:00:33.4]} 49. Rb6+ {[%clk 0:01:03.5]} 49... Kd5 {[%clk 0:00:34.6]} 50. h7
{[%clk 0:01:03.1]} 50... Ng4 {[%clk 0:00:35.8]} 51. Bd2 {[%clk 0:00:50.1]} 51...
Bd4 {[%clk 0:00:34.1]} 52. Rxg6 {[%clk 0:00:48.1]} 52... b2 {[%clk 0:00:33]} 53.
Rxg4 {[%clk 0:00:36.9]} 53... Bh8 {[%clk 0:00:28.6]} 54. Rg5+ {[%clk 0:00:36.1]}
54... Kc6 {[%clk 0:00:29.6]} 55. Rg6+ {[%clk 0:00:35]} 55... Kb7 {[%clk
0:00:31]} 56. Rg4 {[%clk 0:00:04.8]} 56... b1=Q {[%clk 0:00:28.7]} 57. Rxc4
{[%clk 0:00:05.9]} 57... Qb5 {[%clk 0:00:29.1]} 58. Kd3 {[%clk 0:00:03.1]} 58...
Qf5+ {[%clk 0:00:26.8]} 59. Re4 {[%clk 0:00:03.2]} 59... Qxh7 {[%clk 0:00:28.7]}
60. f3 {[%clk 0:00:03.2]} 60... Kc6 {[%clk 0:00:28.6]} 61. Ke2 {[%clk
0:00:04.2]} 61... Kd5 {[%clk 0:00:27.6]} 62. Be3 {[%clk 0:00:04.9]} 62... Qg6
{[%clk 0:00:26.1]} 63. Rg4 {[%clk 0:00:06]} 63... Qc2+ {[%clk 0:00:26.7]} 64.
Kf1 {[%clk 0:00:04.6]} 64... Qd1+ {[%clk 0:00:24.1]} 65. Kf2 {[%clk 0:00:05.6]}
65... Qc2+ {[%clk 0:00:24.8]} 66. Kg3 {[%clk 0:00:04.7]} 66... Be5+ {[%clk
0:00:24.7]} 67. Kh3 {[%clk 0:00:05.1]} 67... Qh7+ {[%clk 0:00:17]} 68. Rh4
{[%clk 0:00:06.1]} 68... Qf5+ {[%clk 0:00:18.4]} 69. Rg4 {[%clk 0:00:06.8]}
69... Kc6 {[%clk 0:00:15.3]} 70. Bf2 {[%clk 0:00:07.2]} 70... Kd7 {[%clk
0:00:13.6]} 71. Bh4 {[%clk 0:00:08.2]} 71... Ke8 {[%clk 0:00:12.6]} 72. Bg5
{[%clk 0:00:08.9]} 72... Kf7 {[%clk 0:00:11.3]} 73. Bh4 {[%clk 0:00:07.4]} 73...
Qb1 {[%clk 0:00:12]} 74. Rg5 {[%clk 0:00:03.3]} 74... Qh1+ {[%clk 0:00:10.9]}
75. Kg4 {[%clk 0:00:04.6]} 75... Qxg2+ {[%clk 0:00:12.3]} 76. Kf5 {[%clk
0:00:05.8]} 76... Bf6 {[%clk 0:00:13.3]} 77. Rxg2 {[%clk 0:00:06.3]} 77... Bxh4
{[%clk 0:00:08.4]} 78. Rc2 {[%clk 0:00:07.8]} 78... Be7 {[%clk 0:00:07.8]} 79.
Rc7 {[%clk 0:00:09.3]} 79... Ke8 {[%clk 0:00:08.9]} 80. Ke6 {[%clk 0:00:10.6]}
1-0